Workbook

Sheet Nota spese
A1: NOME AZIENDA
A2: NOTA SPESE
B4: DIPENDENTE: | C4: Guido Pica | G4: AUTORIZZATA DA:
B5: REPARTO: | C5: Vendite
B6: FESTIVI: | C6: 2013-03-07 | G6: DATA:
B7: INDENNITÀ TRASFERTA: | C7: € 0.67
C9: =UPPER(TEXT(C10,"gggg")) -> VENERDÌ | D9: =UPPER(TEXT(D10,"gggg")) -> SABATO | E9: =UPPER(TEXT(E10,"gggg")) -> DOMENICA | F9: =UPPER(TEXT(F10,"gggg")) -> LUNEDÌ | G9: =UPPER(TEXT(G10,"gggg")) -> MARTEDÌ | H9: =UPPER(TEXT(H10,"gggg")) -> MERCOLEDÌ | I9: =UPPER(TEXT(I10,"gggg")) -> GIOVEDÌ
B10: TRASPORTI | C10: =Festivi-6 -> 2013-03-01 | D10: =Festivi-5 -> 2013-03-02 | E10: =Festivi-4 -> 2013-03-03 | F10: =Festivi-3 -> 2013-03-04 | G10: =Festivi-2 -> 2013-03-05 | H10: =Festivi-1 -> 2013-03-06 | I10: =Festivi -> 2013-03-07 | J10: TOTALE
B11: Km | C11: 145 | J11: =SUM(Trasporti[[#This Row],[Giorno 1]:[Giorno 7]]) -> 145
B12: Rimborso chilometrico | C12: =C11*IndennitàTrasferta -> € 97.15 | D12: € 0.00 | E12: € 0.00 | F12: € 0.00 | G12: € 0.00 | H12: € 0.00 | I12: € 0.00 | J12: =SUM(Trasporti[[#This Row],[Giorno 1]:[Giorno 7]]) -> € 97.15
B13: Parcheggi e pedaggi | F13: € 17.00 | J13: =SUM(Trasporti[[#This Row],[Giorno 1]:[Giorno 7]]) -> € 17.00
B14: Noleggio auto | C14: € 79.00 | F14: € 79.00 | J14: =SUM(Trasporti[[#This Row],[Giorno 1]:[Giorno 7]]) -> € 158.00
B15: Taxi/Auto con conducente | J15: =SUM(Trasporti[[#This Row],[Giorno 1]:[Giorno 7]]) -> € 0.00
B16: Altro (treno o autobus) | J16: =SUM(Trasporti[[#This Row],[Giorno 1]:[Giorno 7]]) -> € 0.00
B17: Biglietti aerei | F17: € 235.00 | J17: =SUM(Trasporti[[#This Row],[Giorno 1]:[Giorno 7]]) -> € 235.00
B18: TOTALE | C18: =SUBTOTAL(109,C12:C17) -> € 176.15 | D18: =SUBTOTAL(109,D12:D17) -> € 0.00 | F18: =SUBTOTAL(109,F12:F17) -> € 331.00 | G18: =SUBTOTAL(109,G12:G17) -> € 0.00 | H18: =SUBTOTAL(109,H12:H17) -> € 0.00 | I18: =SUBTOTAL(109,I12:I17) -> € 0.00 | J18: =SUM(J12:J17) -> € 507.15
B20: ALLOGGIO E PASTI
B21: Alloggio | C21: € 145.00 | J21: =SUM(AlloggioPasti[[#This Row],[Giorno 1]:[Giorno 7]]) -> € 145.00
B22: Colazione | C22: € 11.49 | J22: =SUM(AlloggioPasti[[#This Row],[Giorno 1]:[Giorno 7]]) -> € 11.49
B23: Pranzo | C23: € 12.00 | J23: =SUM(AlloggioPasti[[#This Row],[Giorno 1]:[Giorno 7]]) -> € 12.00
B24: Cena | C24: € 17.00 | J24: =SUM(AlloggioPasti[[#This Row],[Giorno 1]:[Giorno 7]]) -> € 17.00
B25: Spuntini | C25: =C24*IndennitàTrasferta -> € 11.39 | J25: =SUM(AlloggioPasti[[#This Row],[Giorno 1]:[Giorno 7]]) -> € 11.39
B26: Subtotale pasti | C26: =SUM(C22:C24) -> € 40.49 | D26: =SUM(D22:D24) -> € 0.00 | E26: € 0.00 | F26: € 0.00 | G26: € 0.00 | H26: € 0.00 | I26: € 0.00 | J26: =SUM(AlloggioPasti[[#This Row],[Giorno 1]:[Giorno 7]]) -> € 40.49
B27: TOTALE | C27: =SUBTOTAL(109,C21,C26) -> € 185.49 | D27: € 0.00 | E27: € 0.00 | F27: € 0.00 | G27: € 0.00 | H27: € 0.00 | I27: € 0.00 | J27: € 185.49
B29: VARIE
B30: Cancelleria | J30: =SUM(Varie[[#This Row],[Giorno 1]:[Giorno 7]]) -> € 0.00
B31: Apparecchiature | J31: =SUM(Varie[[#This Row],[Giorno 1]:[Giorno 7]]) -> € 0.00
B32: Telefono, fax, Internet | J32: =SUM(Varie[[#This Row],[Giorno 1]:[Giorno 7]]) -> € 0.00
B33: Altro* | J33: =SUM(Varie[[#This Row],[Giorno 1]:[Giorno 7]]) -> € 0.00
B34: Divertimenti* | F34: € 199.00 | J34: =SUM(Varie[[#This Row],[Giorno 1]:[Giorno 7]]) -> € 199.00
B35: TOTALE | C35: =SUBTOTAL(109,Varie[Giorno 1]) -> € 0.00 | D35: =SUBTOTAL(109,Varie[Giorno 2]) -> € 0.00 | E35: =SUBTOTAL(109,Varie[Giorno 3]) -> € 0.00 | F35: =SUBTOTAL(109,Varie[Giorno 4]) -> € 199.00 | G35: =SUBTOTAL(109,Varie[Giorno 5]) -> € 0.00 | H35: =SUBTOTAL(109,Varie[Giorno 6]) -> € 0.00 | I35: =SUBTOTAL(109,Varie[Giorno 7]) -> € 0.00 | J35: =SUBTOTAL(109,Varie[Totale]) -> € 199.00
B37: TOTALE COMPLESSIVO | C37: =SUM(Varie[[#Totals],[Giorno 1]],AlloggioPasti[[#Totals],[Giorno 1]],Trasporti[[#Totals],[Giorno 1]]) -> € 361.64 | D37: =SUM(Varie[[#Totals],[Giorno 2]],AlloggioPasti[[#Totals],[Giorno 2]],Trasporti[[#Totals],[Giorno 2]]) -> € 0.00 | E37: =SUM(Varie[[#Totals],[Giorno 3]],AlloggioPasti[[#Totals],[Giorno 3]],Trasporti[[#Totals],[Giorno 3]]) -> € 0.00 | F37: =SUM(Varie[[#Totals],[Giorno 4]],AlloggioPasti[[#Totals],[Giorno 4]],Trasporti[[#Totals],[Giorno 4]]) -> € 530.00 | G37: =SUM(Varie[[#Totals],[Giorno 5]],AlloggioPasti[[#Totals],[Giorno 5]],Trasporti[[#Totals],[Giorno 5]]) -> € 0.00 | H37: =SUM(Varie[[#Totals],[Giorno 6]],AlloggioPasti[[#Totals],[Giorno 6]],Trasporti[[#Totals],[Giorno 6]]) -> € 0.00 | I37: =SUM(Varie[[#Totals],[Giorno 7]],AlloggioPasti[[#Totals],[Giorno 7]],Trasporti[[#Totals],[Giorno 7]]) -> € 0.00 | J37: =SUM(Varie[[#Totals],[Totale]],AlloggioPasti[[#Totals],[Totale]],Trasporti[[#Totals],[Total]]) -> € 891.64
J39: SPESE TOTALI
B40: *Finalità aziendali per voci relative a "Divertimento" e "Altro": | J40: =SUM(J18,J27,J35) -> € 891.64
J41: ANTICIPI
J43: TOTALE RIMBORSO
J44: =J40-J42 -> € 891.64
J45: Allegare tutte le ricevute.
